bitfinex/quotes_BTCUSD_20241223
["timestamp","ask_amount","ask_price","bid_price","bid_amount"]
[1734950551847,0.00130018,96143.0,96142.0,0.001]
[1734950552056,0.00130018,96143.0,96142.0,0.00979001]
[1734950552635,0.00130018,96143.0,96142.0,0.00879001]
[1734950552858,0.0803,96144.0,96142.0,0.00979001]
[1734950554336,0.0808,96152.0,96147.0,0.208014]
[1734950554554,0.001,96144.0,96143.0,0.208023]
[1734950555137,0.0808,96152.0,96148.0,0.20801]
[1734950555539,0.0818,96152.0,96148.0,0.20801]
[1734950555854,0.0818,96152.0,96143.0,0.209023]
[1734950556081,0.0808,96152.0,96143.0,0.209023]
[1734950556415,0.0838,96152.0,96143.0,0.209023]
[1734950556635,0.0808,96152.0,96143.0,0.208023]
[1734950557055,0.0808,96152.0,96139.0,0.208031]
[1734950557260,0.0013,96151.0,96139.0,0.208031]
[1734950558508,0.0013,96151.0,96143.0,0.208022]
[1734950559144,0.001,96151.0,96146.0,0.208016]
[1734950559811,0.002,96151.0,96144.0,0.208021]
[1734950560025,0.001,96151.0,96140.0,0.208029]
[1734950560237,0.001,96151.0,96148.0,0.208012]
[1734950560449,0.003,96151.0,96148.0,0.208012]
[1734950560672,0.003,96151.0,96142.0,0.208025]
[1734950560878,0.003,96151.0,96146.0,0.001]
[1734950561540,0.003,96151.0,96147.0,0.21702489]
[1734950561930,0.002,96151.0,96147.0,0.21702489]
[1734950562160,0.0808,96152.0,96147.0,0.21702489]
[1734950562534,0.00015988,96153.0,96149.0,0.208009]
[1734950562948,0.00015988,96153.0,96150.0,0.0089921]
[1734950563358,0.00015988,96153.0,96149.0,0.208009]
[1734950563525,0.00015988,96153.0,96152.0,0.208003]
[1734950563960,0.00015988,96153.0,96152.0,0.21699491]
[1734950565677,0.00015988,96153.0,96152.0,0.21799491]
[1734950566336,0.00015988,96153.0,96152.0,0.00999191]
[1734950566583,0.1450601,96153.0,96152.0,0.00999191]
[1734950566718,0.1450601,96153.0,96152.0,0.001]
[1734950566933,0.17751943,96153.0,96129.0,0.18517152]
[1734950567183,0.075,96138.0,96129.0,0.18517152]
[1734950567331,0.075,96138.0,96135.0,0.00594689]
[1734950567332,0.04820032,96137.0,96135.0,0.00594689]
[1734950568278,0.208038,96136.0,96128.0,0.01063885]
[1734950568437,0.00130037,96135.0,96119.0,0.02112136]
[1734950568853,0.00130037,96135.0,96120.0,0.00594828]
[1734950569496,0.00130038,96134.0,96120.0,0.00594828]
[1734950570561,0.00230038,96134.0,96120.0,0.00594828]
[1734950570703,0.00330038,96134.0,96120.0,0.00594828]
[1734950572567,0.00330038,96134.0,96121.0,0.208071]
[1734950572766,0.002,96134.0,96122.0,0.208068]
[1734950572983,0.002,96134.0,96122.0,0.21410884]
[1734950573653,0.001,96134.0,96122.0,0.21410884]
[1734950573941,0.002,96134.0,96122.0,0.21410884]
[1734950574890,0.001,96134.0,96122.0,0.21410884]
[1734950575116,0.002,96134.0,96122.0,0.21410884]
[1734950575325,0.001,96134.0,96122.0,0.21410884]
[1734950575519,0.002,96134.0,96122.0,0.21410884]
[1734950578527,0.002,96134.0,96122.0,0.00604084]
[1734950578738,0.002,96134.0,96130.0,0.208051]
[1734950578940,0.002,96134.0,96130.0,0.416102]
[1734950579144,0.002,96134.0,96132.0,0.208047]
[1734950579351,0.001,96134.0,96132.0,0.208047]
[1734950579555,0.0753,96144.0,96133.0,0.00611152]
[1734950579785,0.0753,96144.0,96134.0,0.208042]
[1734950580220,0.0753,96144.0,96135.0,0.00611054]
[1734950581737,0.0753,96144.0,96130.0,0.208051]
[1734950581950,0.0753,96144.0,96136.0,0.00608196]
[1734950581951,0.00130019,96143.0,96136.0,0.00608196]
[1734950582157,0.00130019,96143.0,96130.0,0.208051]
[1734950582363,0.00130019,96143.0,96137.0,0.00608186]
[1734950582563,0.00130019,96143.0,96130.0,0.208051]
[1734950582741,0.00130019,96143.0,96130.0,0.416102]
[1734950582975,0.0773,96144.0,96131.0,0.00608242]
[1734950583151,0.0753,96144.0,96132.0,0.208047]
[1734950583364,0.001,96143.0,96132.0,0.208047]
[1734950583598,0.001,96143.0,96133.0,0.00608223]
[1734950584314,0.002,96143.0,96133.0,0.00608223]
[1734950584765,0.001,96143.0,96134.0,0.208042]
[1734950585024,0.002,96143.0,96135.0,0.00608205]
[1734950585698,0.0763,96144.0,96135.0,0.00608205]
[1734950585900,0.0763,96144.0,96136.0,0.208038]
[1734950586100,0.0753,96144.0,96141.0,0.208025]
[1734950586303,0.0753,96144.0,96142.0,0.0060814]
[1734950586509,0.002,96143.0,96142.0,0.0060814]
[1734950586723,0.002,96143.0,96138.0,0.208034]
[1734950586883,0.002,96143.0,96142.0,0.0060814]
[1734950587092,0.002,96143.0,96138.0,0.208034]
[1734950587286,0.002,96143.0,96140.0,0.208029]
[1734950587481,0.002,96143.0,96142.0,0.208025]
[1734950587684,0.002,96143.0,96142.0,0.21410188]
[1734950587865,0.0798,96152.0,96143.0,0.208023]
[1734950588064,0.0798,96152.0,96145.0,0.208019]
[1734950588264,0.00130007,96151.0,96146.0,0.00603367]
[1734950588492,0.00130007,96151.0,96142.0,0.208025]
[1734950588744,0.00130007,96151.0,96144.0,0.208021]
[1734950589133,0.00130007,96151.0,96145.0,0.0060328]
[1734950589366,0.00130007,96151.0,96146.0,0.001]
[1734950589572,0.00130007,96151.0,96145.0,0.0060328]
[1734950589742,0.00130007,96151.0,96147.0,0.00603261]
[1734950589943,0.00130007,96151.0,96146.0,0.00603271]
[1734950590142,0.00130007,96151.0,96148.0,0.00603252]
[1734950590403,0.00130007,96151.0,96147.0,0.00603261]
[1734950590630,0.00130007,96151.0,96148.0,0.00603252]
[1734950590872,0.00130007,96151.0,96144.0,0.208021]
[1734950591060,0.00130007,96151.0,96145.0,0.0060328]
[1734950591465,0.00130007,96151.0,96147.0,0.001]
[1734950591666,0.00130007,96151.0,96148.0,0.00603252]
[1734950592083,0.00130007,96151.0,96144.0,0.209021]
[1734950592296,0.00130007,96151.0,96146.0,0.208016]
[1734950592503,0.00130007,96151.0,96147.0,0.00602337]
[1734950592915,0.00130007,96151.0,96148.0,0.001]
[1734950593405,0.0798,96152.0,96149.0,0.00602318]
[1734950594573,0.0798,96152.0,96146.0,0.209016]
[1734950594794,0.0798,96152.0,96150.0,0.00601192]
[1734950594989,0.0798,96152.0,96146.0,0.208016]
[1734950595192,0.0808,96152.0,96151.0,0.00606395]
[1734950595404,0.0808,96152.0,96146.0,0.208016]
[1734950595776,0.0798,96152.0,96146.0,0.208016]
[1734950595990,0.0798,96152.0,96147.0,0.00628546]
[1734950596208,0.0808,96152.0,96147.0,0.00628546]
[1734950597513,0.0798,96152.0,96147.0,0.00628546]
[1734950597717,0.0798,96152.0,96148.0,0.208012]
[1734950597929,0.00033108,96153.0,96148.0,0.416024]
[1734950598133,0.00033108,96153.0,96150.0,0.416016]
[1734950598294,0.001,96152.0,96150.0,0.208008]
[1734950598494,0.001,96152.0,96151.0,0.0062894]
[1734950598765,0.00033108,96153.0,96151.0,0.0062894]
[1734950599135,0.00133108,96153.0,96151.0,0.0062894]
[1734950599576,0.0001714,96152.0,96151.0,0.0062894]
[1734950601371,0.0011714,96152.0,96151.0,0.0062894]
[1734950602228,0.13097146,96152.0,96141.0,0.208027]
[1734950602645,0.13097146,96152.0,96138.0,0.208033]
[1734950602646,0.00130007,96151.0,96142.0,0.00624673]
[1734950603079,0.00130007,96151.0,96137.0,0.0106666]
[1734950603511,0.00130007,96151.0,96138.0,0.0062471]
[1734950603707,0.00130007,96151.0,96134.0,0.416083]
[1734950603925,0.00130007,96151.0,96135.0,0.00624738]
[1734950604132,0.00130007,96151.0,96136.0,0.208038]
[1734950604492,0.00130007,96151.0,96137.0,0.00624719]
[1734950605106,0.0802,96150.0,96142.0,0.001]
[1734950605307,0.00130017,96149.0,96142.0,0.001]
[1734950605508,0.00130017,96149.0,96134.0,0.21837131]
[1734950605836,0.00130017,96149.0,96137.0,0.001]
[1734950606057,0.00130017,96149.0,96135.0,0.00627507]
[1734950606265,0.0802,96148.0,96138.0,0.00627479]
[1734950606474,0.10450032,96147.0,96136.0,0.00627498]
[1734950606695,0.10450032,96147.0,96127.0,0.15]
[1734950607096,0.10450032,96147.0,96128.0,0.00627585]
[1734950607684,0.10550032,96147.0,96128.0,0.21433085]
[1734950608058,0.10550032,96147.0,96134.0,0.208042]
[1734950608340,0.10450032,96147.0,96135.0,0.0062752]
[1734950608475,0.10550032,96147.0,96135.0,0.0062752]
[1734950608903,0.10550032,96147.0,96129.0,0.208053]
[1734950609097,0.10550032,96147.0,96130.0,0.00627566]
[1734950609319,0.10750032,96147.0,96130.0,0.00627566]
[1734950609529,0.10750032,96147.0,96141.0,0.208026]
[1734950609530,0.00130018,96146.0,96141.0,0.208026]
[1734950609742,0.0822,96147.0,96141.0,0.208026]
[1734950609961,0.0842,96147.0,96142.0,0.00628413]
[1734950610210,0.00130017,96146.0,96142.0,0.00628413]
[1734950610609,0.00130017,96146.0,96136.0,0.208036]
[1734950610842,0.00130017,96146.0,96143.0,0.00628404]
[1734950611194,0.00130017,96146.0,96136.0,0.208036]
[1734950611723,0.00130017,96146.0,96138.0,0.208034]
[1734950611937,0.00230017,96146.0,96138.0,0.208034]
[1734950612180,0.00430017,96146.0,96139.0,0.00627081]
[1734950612404,0.00230017,96146.0,96139.0,0.00627081]
[1734950612635,0.00230017,96146.0,96140.0,0.208029]
[1734950612860,0.00430017,96146.0,96140.0,0.208029]
[1734950613106,0.00130017,96146.0,96141.0,0.00627163]
[1734950613348,0.00330017,96146.0,96141.0,0.00627163]
[1734950613584,0.00430017,96146.0,96141.0,0.00627163]
[1734950614056,0.00330017,96146.0,96136.0,0.208036]
[1734950614326,0.00330017,96146.0,96142.0,0.00630688]
[1734950614327,0.00430017,96146.0,96142.0,0.00630688]
[1734950614517,0.00230017,96146.0,96136.0,0.208036]
[1734950614787,0.00130017,96146.0,96137.0,0.00630735]
[1734950615047,0.00430017,96146.0,96137.0,0.00630735]
[1734950615273,0.00430017,96146.0,96138.0,0.208034]
[1734950615491,0.00630017,96146.0,96138.0,0.208034]
[1734950615748,0.00430017,96146.0,96139.0,0.00630716]
[1734950615985,0.00630017,96146.0,96139.0,0.00630716]
[1734950616185,0.00430017,96146.0,96139.0,0.00630716]
[1734950616644,0.00630017,96146.0,96139.0,0.00630716]
[1734950617116,0.00530017,96146.0,96139.0,0.00630716]
[1734950617287,0.00630017,96146.0,96139.0,0.00630716]
[1734950618005,0.00130017,96146.0,96139.0,0.00630716]
[1734950618274,0.00430017,96146.0,96139.0,0.00630716]
[1734950618487,0.00430017,96146.0,96140.0,0.208029]
[1734950618859,0.00430017,96146.0,96141.0,0.00630773]
[1734950619323,0.00430017,96146.0,96142.0,0.00630764]
[1734950619495,0.00130017,96146.0,96137.0,0.208035]
[1734950619693,0.00130017,96146.0,96138.0,0.00630834]
[1734950619908,0.00330017,96146.0,96139.0,0.208032]
[1734950620106,0.00330017,96146.0,96138.0,0.00630834]
[1734950620107,0.00430017,96146.0,96140.0,0.00630816]
[1734950620311,0.00430017,96146.0,96137.0,0.208035]
[1734950620527,0.00330017,96146.0,96138.0,0.00630734]
[1734950620736,0.00430017,96146.0,96138.0,0.00630734]
[1734950621191,0.00130017,96146.0,96138.0,0.00630734]
[1734950621415,0.00330017,96146.0,96138.0,0.00630734]
[1734950621610,0.00430017,96146.0,96138.0,0.00630734]
[1734950621858,0.00230017,96146.0,96138.0,0.00630734]
[1734950622250,0.00330017,96146.0,96138.0,0.00630734]
[1734950623056,0.00330017,96146.0,96139.0,0.208032]
[1734950623268,0.00230017,96146.0,96139.0,0.208032]
[1734950623481,0.00230017,96146.0,96140.0,0.00630719]
[1734950623700,0.00330017,96146.0,96140.0,0.00630719]
[1734950624092,0.00230017,96146.0,96140.0,0.00630719]
[1734950624533,0.00330017,96146.0,96140.0,0.00630719]
[1734950624757,0.00230017,96146.0,96140.0,0.00630719]
[1734950624959,0.00130017,96146.0,96140.0,0.00630719]
[1734950625191,0.00330017,96146.0,96140.0,0.00630719]
[1734950626925,0.00330017,96146.0,96137.0,0.21876868]
[1734950627366,0.00330017,96146.0,96138.0,0.00630847]
[1734950627618,0.00230017,96146.0,96138.0,0.00630847]
[1734950628069,0.023,96140.0,96138.0,0.00630847]
[1734950628289,0.208029,96141.0,96138.0,0.00630847]
[1734950628290,0.14750041,96139.0,96138.0,0.00630847]
[1734950628511,0.14750041,96139.0,96127.0,0.09310035]
[1734950628512,0.1232,96129.0,96127.0,0.09310035]
[1734950628735,0.07690044,96128.0,96127.0,0.09310035]
[1734950628995,0.1094021,96128.0,96127.0,0.09310035]
[1734950629223,0.0801,96127.0,96119.0,0.02058525]
[1734950629448,0.00130051,96126.0,96119.0,0.02058525]
[1734950629679,0.023,96124.0,96119.0,0.02058525]
[1734950629903,0.023,96122.0,96114.0,0.09310035]
[1734950630124,0.00130058,96121.0,96114.0,0.09310035]
[1734950630348,0.00130058,96121.0,96112.0,8.56e-05]
[1734950632386,0.00130058,96121.0,96116.0,0.0010856]
[1734950635102,0.00230058,96121.0,96116.0,8.56e-05]
[1734950635368,0.002,96121.0,96116.0,8.56e-05]
[1734950635582,0.00130057,96120.0,96116.0,8.56e-05]
[1734950635783,0.00130057,96120.0,96117.0,0.00649009]
[1734950636133,0.00130057,96120.0,96116.0,8.56e-05]
[1734950636341,0.00130057,96120.0,96117.0,0.00649009]
[1734950636553,0.00130057,96120.0,96116.0,0.0010856]
[1734950636959,0.00130055,96119.0,96117.0,0.00649009]
[1734950637184,0.00130055,96122.0,96117.0,0.00649009]
[1734950637369,0.00130055,96122.0,96116.0,0.0010856]
[1734950637573,0.00130055,96122.0,96118.0,0.00648999]
[1734950637777,0.00130055,96122.0,96117.0,0.00649009]
[1734950637979,0.00130055,96122.0,96119.0,0.0064899]
[1734950638186,0.076,96130.0,96118.0,0.00648999]
[1734950638399,0.076,96130.0,96116.0,8.56e-05]
[1734950638400,0.001,96122.0,96120.0,0.00648981]
[1734950638601,0.001,96122.0,96116.0,8.56e-05]
[1734950638815,0.001,96122.0,96121.0,0.00648971]
[1734950639360,0.0768,96121.0,96117.0,0.416158]
[1734950639919,0.0768,96121.0,96117.0,0.208079]
[1734950640368,0.00130048,96120.0,96116.0,8.56e-05]
[1734950640555,0.00130058,96120.0,96116.0,8.56e-05]
[1734950641907,0.00130057,96119.0,96116.0,0.0010856]
[1734950642126,0.00130057,96118.0,96116.0,8.56e-05]
[1734950643184,0.00130057,96120.0,96116.0,8.56e-05]
[1734950643911,0.0768,96121.0,96117.0,0.208079]
[1734950644110,0.001,96119.0,96118.0,0.208076]
[1734950644554,0.0817,96127.0,96118.0,0.208076]
[1734950644774,0.00130049,96126.0,96118.0,0.208076]
[1734950644976,0.001,96120.0,96118.0,0.208076]
[1734950645385,0.0817,96127.0,96118.0,0.208076]
[1734950645800,0.001,96119.0,96118.0,0.208076]
[1734950646229,0.001,96119.0,96116.0,0.2081656]
[1734950647018,0.00430047,96126.0,96116.0,0.2081656]
[1734950647348,0.001,96120.0,96116.0,0.2081656]
[1734950647513,0.001,96120.0,96116.0,8.56e-05]
[1734950647719,0.00430047,96126.0,96116.0,8.56e-05]
[1734950648010,0.00130047,96126.0,96116.0,8.56e-05]
[1734950648212,0.0001714,96120.0,96118.0,0.001]
[1734950648613,0.0001714,96120.0,96119.0,0.00648203]
[1734950649052,0.0001714,96120.0,96116.0,0.2081666]
[1734950649053,0.0001714,96120.0,96116.0,0.2091666]
[1734950649285,0.0001714,96120.0,96119.0,0.00648044]
[1734950649501,0.0001714,96120.0,96118.0,0.001]
[1734950649700,0.0001714,96120.0,96119.0,0.00648044]
[1734950650116,0.0001714,96120.0,96116.0,8.56e-05]
[1734950650324,0.0001714,96120.0,96119.0,0.00648044]
[1734950650757,0.0001714,96120.0,96116.0,0.2081666]
[1734950650758,0.0001714,96120.0,96116.0,8.56e-05]
[1734950651182,0.0001714,96120.0,96119.0,0.001]
[1734950651606,0.0001714,96120.0,96119.0,0.00748044]
[1734950651835,0.0001714,96120.0,96119.0,0.001]
[1734950652046,0.0001714,96120.0,96119.0,0.00648115]
[1734950652263,0.0001714,96120.0,96116.0,0.0010856]
[1734950652479,0.0001714,96120.0,96119.0,0.00648115]
[1734950652685,0.0001714,96120.0,96116.0,0.0010856]
[1734950652889,0.0001714,96120.0,96119.0,0.00648115]
[1734950653107,0.0001714,96120.0,96116.0,0.0010856]
[1734950653320,0.0001714,96120.0,96119.0,0.00648115]
[1734950653538,0.0764714,96120.0,96116.0,8.56e-05]
[1734950653748,0.00130062,96119.0,96116.0,8.56e-05]
[1734950656773,0.00230062,96119.0,96116.0,8.56e-05]
[1734950659691,0.00247202,96119.0,96116.0,8.56e-05]
[1734950661618,0.00247202,96119.0,96117.0,0.00670582]
[1734950662034,0.00247202,96119.0,96116.0,8.56e-05]
[1734950662248,0.00130061,96118.0,96116.0,8.56e-05]
[1734950662450,0.00130061,96118.0,96117.0,0.00670582]
[1734950662782,0.00130061,96118.0,96116.0,8.56e-05]
[1734950662988,0.00130061,96118.0,96117.0,0.00670582]
[1734950663202,0.00130057,96118.0,96117.0,0.00670582]
[1734950663410,0.00130057,96118.0,96116.0,8.56e-05]
[1734950663613,0.00130057,96117.0,96116.0,8.56e-05]
[1734950664032,0.0001714,96119.0,96116.0,8.56e-05]
[1734950664252,0.00147195,96119.0,96116.0,8.56e-05]
[1734950664963,0.00147195,96119.0,96116.0,0.0010856]
[1734950665167,0.00147195,96119.0,96116.0,8.56e-05]
[1734950666441,0.00247195,96119.0,96116.0,8.56e-05]
[1734950666752,0.0011714,96119.0,96116.0,0.2081656]
[1734950666956,0.0011714,96119.0,96118.0,0.208077]
[1734950667223,0.0011714,96119.0,96118.0,0.21476678]
[1734950668668,0.0001714,96119.0,96118.0,0.21476678]
[1734950669879,0.0011714,96119.0,96118.0,0.21476678]
[1734950671446,0.0001714,96119.0,96118.0,0.21476678]
[1734950671690,0.0001714,96119.0,96118.0,0.21576678]
[1734950672754,0.0001714,96119.0,96118.0,0.21476678]
[1734950672888,0.0001714,96119.0,96118.0,0.21576678]
[1734950674164,0.0001714,96119.0,96118.0,0.21476678]
[1734950674594,0.0001714,96119.0,96118.0,0.21676678]
[1734950687251,0.0001714,96119.0,96118.0,0.00868978]
[1734950687771,0.0001714,96119.0,96118.0,0.00668978]
[1734950688257,0.0011714,96119.0,96117.0,0.208079]
[1734950688500,0.0011714,96119.0,96118.0,0.00771151]
[1734950689468,0.0001714,96119.0,96118.0,0.00771151]
[1734950689668,0.0001714,96119.0,96118.0,0.10081186]
[1734950690085,0.0001714,96119.0,96118.0,0.10281186]
[1734950690505,0.0011714,96119.0,96118.0,0.10281186]
[1734950690714,0.0011714,96119.0,96118.0,0.10581186]
[1734950690926,0.0001714,96119.0,96118.0,0.10081186]
[1734950691140,0.0001714,96119.0,96118.0,0.10481186]
[1734950692166,0.0001714,96119.0,96118.0,0.1254141]
[1734950694827,0.0001714,96119.0,96118.0,0.03231375]
[1734950695053,0.0001714,96119.0,96118.0,0.01171151]
[1734950700462,0.0001714,96119.0,96118.0,0.00871151]
[1734950701450,0.0001714,96119.0,96118.0,0.01171151]
[1734950702792,0.0001714,96119.0,96118.0,0.01071151]
[1734950703008,0.0001714,96119.0,96118.0,0.10381186]
[1734950703226,0.0001714,96119.0,96118.0,0.10481186]
[1734950703668,0.0001714,96119.0,96118.0,0.01171151]
[1734950706658,0.0001714,96119.0,96118.0,0.10509957]
[1734950709510,0.0001714,96119.0,96118.0,0.1040593]
[1734950711805,0.0001714,96119.0,96118.0,0.01067124]
[1734950716854,0.0001714,96119.0,96118.0,0.01171157]
[1734950717967,0.0001714,96119.0,96118.0,0.09181157]
[1734950718248,0.0001714,96119.0,96118.0,0.01171157]
[1734950718464,0.0001714,96119.0,96118.0,0.15059021]
[1734950719747,0.0001714,96119.0,96118.0,0.49559324]
[1734950719974,0.0001714,96119.0,96118.0,0.49455291]
[1734950721099,0.077,96139.0,96138.0,0.208034]
[1734950721315,0.0001714,96146.0,96145.0,0.208019]
[1734950721739,0.0001714,96146.0,96145.0,0.21477189]
[1734950724601,0.0001714,96146.0,96145.0,0.21577189]
[1734950725223,0.0001714,96146.0,96145.0,0.21877189]
[1734950725582,0.0001714,96146.0,96145.0,0.21777189]
[1734950726164,0.0001714,96146.0,96145.0,0.21877189]
[1734950726377,0.0001714,96146.0,96145.0,0.21577189]
[1734950726791,0.0001714,96146.0,96145.0,0.21977189]
[1734950727007,0.0001714,96146.0,96145.0,0.21577189]
[1734950727184,0.0001714,96146.0,96145.0,0.21477189]
[1734950727356,0.0001714,96146.0,96145.0,0.21877189]
[1734950727568,0.0001714,96146.0,96145.0,0.21977189]
[1734950728441,0.0792714,96146.0,96145.0,0.01175289]
[1734950728860,0.0792714,96146.0,96145.0,0.005]
[1734950729507,0.0792714,96146.0,96145.0,0.001]
[1734950730373,0.0792714,96146.0,96138.0,0.21861427]
[1734950730587,0.00130016,96145.0,96138.0,0.21861427]
[1734950730800,0.00130016,96145.0,96140.0,0.208029]
[1734950731262,0.00130016,96145.0,96141.0,0.00673297]
[1734950731682,0.0792714,96146.0,96141.0,0.00673297]
[1734950733373,0.0792714,96146.0,96142.0,0.208025]
[1734950733747,0.0792714,96146.0,96143.0,0.00673278]
[1734950735370,0.0792714,96146.0,96138.0,0.21861327]
[1734950735577,0.0792714,96146.0,96144.0,0.00673269]
[1734950735782,0.0792714,96146.0,96142.0,0.209024]
[1734950735993,0.0792714,96146.0,96145.0,0.00668687]
[1734950736173,0.0792714,96146.0,96142.0,0.209024]
[1734950736393,0.0792714,96146.0,96145.0,0.00668687]
[1734950736638,0.0792714,96146.0,96142.0,0.208024]
[1734950736848,0.0792714,96146.0,96145.0,0.00668687]
[1734950737163,0.0792714,96146.0,96142.0,0.208024]
[1734950737200,0.0792714,96146.0,96145.0,0.00768687]
[1734950737406,0.0792714,96146.0,96145.0,0.001]
[1734950738289,0.0792714,96146.0,96145.0,0.00768687]
[1734950738650,0.0792714,96146.0,96145.0,0.00668687]
[1734950739257,0.0792714,96146.0,96139.0,0.208031]
[1734950739429,0.0792714,96146.0,96145.0,0.00668687]
[1734950739646,0.0792714,96146.0,96145.0,0.001]
[1734950740215,0.0792714,96146.0,96145.0,0.00768687]
[1734950743767,0.0001714,96146.0,96145.0,0.00768687]
[1734950745027,0.0001714,96146.0,96145.0,0.00668687]
[1734950745240,0.0001714,96146.0,96145.0,0.01068687]
[1734950745422,0.0001714,96146.0,96143.0,0.208022]
[1734950745633,0.0001714,96146.0,96145.0,0.00668687]
[1734950745841,0.0001714,96146.0,96145.0,0.212019]
[1734950746044,0.0001714,96146.0,96145.0,0.21870587]
[1734950746251,0.0001714,96146.0,96145.0,0.21570587]
[1734950746479,0.0001714,96146.0,96145.0,0.21970587]
[1734950746660,0.0001714,96146.0,96145.0,0.21870587]
[1734950747079,0.0001714,96146.0,96145.0,0.21970587]
[1734950747518,0.0001714,96146.0,96145.0,0.21870587]
[1734950747726,0.0001714,96146.0,96145.0,0.21970587]
[1734950747924,0.0001714,96146.0,96145.0,0.21570587]
[1734950748278,0.0001714,96146.0,96145.0,0.21970587]
[1734950759800,0.0001714,96146.0,96145.0,0.21470587]
[1734950760007,0.0001714,96146.0,96145.0,0.21970587]
[1734950760647,0.0001714,96146.0,96145.0,0.21870587]
[1734950761075,0.0001714,96147.0,96146.0,0.15]
[1734950761292,0.13925725,96178.0,96162.0,0.207982]
[1734950761293,0.083,96171.0,96162.0,0.207982]
[1734950761719,0.00024551,96167.0,96166.0,0.207973]
[1734950762151,0.00024551,96167.0,96166.0,0.21457398]
[1734950765059,0.00024551,96167.0,96166.0,0.21857398]
[1734950765271,0.00024551,96167.0,96166.0,0.24083813]
[1734950765722,0.00024551,96167.0,96166.0,0.21957398]
[1734950766642,0.12524551,96167.0,96166.0,0.01160098]
[1734950767091,0.14954554,96167.0,96166.0,0.01160098]
[1734950767309,0.18199112,96167.0,96166.0,0.01160098]
[1734950767559,0.18199112,96167.0,96166.0,0.00760098]
[1734950767769,0.0457,96163.0,96160.0,0.02901104]
[1734950767990,0.0457,96163.0,96142.0,0.02901104]
[1734950767991,0.1037,96160.0,96142.0,0.02901104]
[1734950768203,0.0807,96158.0,96142.0,0.02901104]
[1734950768422,0.08200014,96157.0,96142.0,0.02901104]
[1734950768866,0.08200014,96157.0,96147.0,0.208014]
[1734950769969,0.08200014,96157.0,96147.0,0.416028]
[1734950770160,0.08200014,96157.0,96148.0,0.00456064]
[1734950770565,0.08200014,96157.0,96149.0,0.20801]
[1734950771012,0.08200014,96157.0,96150.0,0.00465171]
[1734950771987,0.08300014,96157.0,96150.0,0.00465171]
[1734950772390,0.08200014,96157.0,96138.0,0.208032]
[1734950772687,0.08200014,96157.0,96139.0,0.00463929]
[1734950772913,0.08300014,96157.0,96139.0,0.00463929]
[1734950773346,0.08200014,96157.0,96139.0,0.00463929]
[1734950773792,0.08300014,96157.0,96140.0,0.208029]
[1734950774205,0.08300014,96157.0,96141.0,0.00463911]
[1734950774624,0.08300014,96157.0,96147.0,0.0001712]
[1734950774751,0.08200014,96157.0,96147.0,0.0001712]
[1734950775166,0.08300014,96157.0,96147.0,0.0001712]
[1734950775587,0.08200014,96157.0,96147.0,0.0001712]
[1734950775795,0.08300014,96157.0,96147.0,0.0001712]
[1734950777851,0.049,96155.0,96147.0,0.0001712]
[1734950778072,0.07920014,96154.0,96147.0,0.0001712]
[1734950779127,0.07920014,96154.0,96147.0,0.0011712]
[1734950780565,0.079,96152.0,96147.0,0.0011712]
[1734950780903,0.079,96148.0,96147.0,0.0001712]
[1734950781018,0.08030027,96148.0,96147.0,0.0001712]
[1734950782170,0.08130027,96148.0,96147.0,0.0001712]
[1734950782683,0.08130027,96148.0,96135.0,0.208039]
[1734950782897,0.00130026,96147.0,96136.0,0.00475911]
[1734950783085,0.00130026,96146.0,96136.0,0.00475911]
[1734950783285,0.00130026,96146.0,96140.0,0.208028]
[1734950783468,0.00130026,96146.0,96141.0,0.00475865]
[1734950784132,0.00130018,96145.0,96141.0,0.00475865]
[1734950784327,0.00130018,96147.0,96141.0,0.00475865]
[1734950785973,0.00230018,96147.0,96141.0,0.00475865]
[1734950788085,0.00130018,96147.0,96141.0,0.00475865]
[1734950788636,0.00230018,96147.0,96141.0,0.00475865]
[1734950789326,0.00230018,96147.0,96137.0,0.208036]
[1734950789543,0.00230018,96147.0,96142.0,0.00474754]
[1734950789748,0.00230018,96147.0,96137.0,0.208036]
[1734950789930,0.00230018,96147.0,96143.0,0.00474745]
[1734950790170,0.00230018,96147.0,96137.0,0.208036]
[1734950790386,0.00230018,96147.0,96144.0,0.00474735]
[1734950790589,0.00230018,96147.0,96137.0,0.208036]
[1734950790952,0.00230018,96147.0,96139.0,0.208032]
[1734950791153,0.00130018,96147.0,96139.0,0.208032]
[1734950791404,0.00130018,96147.0,96140.0,0.00475181]
[1734950791985,0.00230018,96147.0,96140.0,0.00475181]
[1734950792463,0.00130018,96147.0,96140.0,0.00475181]
[1734950792848,0.00230018,96147.0,96136.0,0.208037]
[1734950793064,0.00230018,96147.0,96141.0,0.00475239]
[1734950793297,0.00230018,96147.0,96136.0,0.208037]
[1734950793517,0.00230018,96147.0,96142.0,0.0047523]
[1734950793518,0.0489,96144.0,96142.0,0.0047523]
[1734950793748,0.0826,96142.0,96130.0,0.01063409]
[1734950794022,0.0826,96140.0,96127.0,0.208057]
[1734950794234,0.00130037,96139.0,96127.0,0.208057]
[1734950794421,0.00130037,96139.0,96128.0,0.00475359]
[1734950794632,0.00130037,96139.0,96128.0,0.00159577]
[1734950794886,0.00130037,96139.0,96123.0,0.208066]
[1734950794887,0.00130037,96139.0,96127.0,0.208057]
[1734950795314,0.00130037,96139.0,96127.0,0.210057]
[1734950796055,0.00130037,96139.0,96127.0,0.211057]
[1734950796259,0.00130037,96139.0,96127.0,0.003]
[1734950796564,0.00130037,96139.0,96127.0,0.001]
[1734950796955,0.00130037,96139.0,96128.0,0.003]
[1734950797164,0.00130037,96139.0,96127.0,0.001]
[1734950797372,0.00130037,96139.0,96123.0,0.2185237]
[1734950797607,0.00230037,96139.0,96123.0,0.2185237]
[1734950797816,0.00230037,96139.0,96127.0,0.208057]
[1734950798248,0.00130037,96139.0,96124.0,0.208064]
[1734950798432,0.0805,96138.0,96124.0,0.208064]
[1734950798756,0.00130037,96137.0,96124.0,0.208064]
[1734950798982,0.00130037,96137.0,96127.0,0.0001714]
[1734950799204,0.00130037,96137.0,96128.0,0.208055]
[1734950799686,0.0014112,96137.0,96128.0,0.208055]
[1734950800375,0.0014112,96137.0,96127.0,0.0011714]
[1734950800835,0.0014112,96137.0,96128.0,0.209055]
[1734950801289,0.00011083,96137.0,96128.0,0.001]
[1734950801558,0.00011083,96137.0,96136.0,0.208038]
[1734950803663,0.00011083,96137.0,96136.0,0.209038]
[1734950803928,0.00011083,96137.0,96136.0,0.208038]
[1734950804197,0.00011083,96137.0,96136.0,0.002]
[1734950807485,0.00011083,96137.0,96132.0,0.416094]
[1734950807693,0.00011083,96137.0,96136.0,0.001]